bitfinex/quotes_BTCUSD_20230111
["timestamp","ask_amount","ask_price","bid_price","bid_amount"]
[1673406656969,0.03536852,17400.0,17399.0,3.2359935]
[1673406658509,0.03526852,17400.0,17399.0,3.2359935]
[1673406659520,0.03526852,17400.0,17399.0,3.5802953]
[1673406659773,0.03526852,17400.0,17399.0,3.2359935]
[1673406663226,0.03526852,17400.0,17399.0,2.80576766]
[1673406664252,0.03526852,17400.0,17399.0,2.13184]
[1673406664527,0.03526852,17400.0,17399.0,2.14034]
[1673406664781,0.03526852,17400.0,17399.0,4.21231224]
[1673406665034,0.03526852,17400.0,17399.0,3.65705969]
[1673406665287,0.03526852,17400.0,17399.0,3.71637487]
[1673406665530,0.03526852,17400.0,17399.0,4.29024055]
[1673406665778,0.03526852,17400.0,17399.0,3.65705969]
[1673406666024,0.03526852,17400.0,17399.0,3.71637487]
[1673406666527,0.03526852,17400.0,17399.0,4.28101094]
[1673406668051,0.03526852,17400.0,17399.0,4.28090684]
[1673406668778,0.03520852,17400.0,17399.0,4.28090684]
[1673406669529,0.03520852,17400.0,17399.0,4.52630828]
[1673406669776,0.03520852,17400.0,17399.0,4.58562346]
[1673406670027,0.03520852,17400.0,17399.0,4.42192346]
[1673406670781,0.03514852,17400.0,17399.0,4.42192346]
[1673406672286,0.03508852,17400.0,17399.0,4.42192346]
[1673406673286,0.03502852,17400.0,17399.0,4.42192346]
[1673406674284,0.03496852,17400.0,17399.0,4.42192346]
[1673406674797,0.03490852,17400.0,17399.0,4.42192346]
[1673406675042,0.03484852,17400.0,17399.0,4.42192346]
[1673406675295,0.03478852,17400.0,17399.0,4.42192346]
[1673406675548,0.03472852,17400.0,17399.0,4.42192346]
[1673406679842,0.03472852,17400.0,17399.0,4.42189346]
[1673406682491,0.03472852,17400.0,17399.0,4.41689346]
[1673406686805,0.03472852,17400.0,17399.0,3.90017377]
[1673406687800,0.03472852,17400.0,17399.0,4.41666192]
[1673406688352,0.03472852,17400.0,17399.0,4.41668409]
[1673406689985,0.03472852,17400.0,17399.0,3.90017377]
[1673406692003,0.03472852,17400.0,17399.0,4.41671398]
[1673406692257,0.03472852,17400.0,17399.0,3.90017377]
[1673406693016,0.03472852,17400.0,17399.0,4.4167736]
[1673406693265,0.03472852,17400.0,17399.0,3.90017377]
[1673406698783,0.03472852,17400.0,17399.0,3.19452108]
[1673406699025,0.03472852,17400.0,17399.0,4.65080605]
[1673406699774,0.03472852,17400.0,17399.0,3.88907792]
[1673406702512,0.03472852,17400.0,17399.0,4.65080605]
[1673406704306,0.03466852,17400.0,17399.0,4.65080605]
[1673406705835,0.03460852,17400.0,17399.0,4.65080605]
[1673406706155,0.03454852,17400.0,17399.0,3.88907792]
[1673406706338,0.03454852,17400.0,17399.0,3.95624921]
[1673406706588,0.03454852,17400.0,17399.0,4.63948069]
[1673406706862,0.03448852,17400.0,17399.0,4.63948069]
[1673406707118,0.03442852,17400.0,17399.0,4.63948069]
[1673406708417,0.03436852,17400.0,17399.0,4.63948069]
[1673406709148,0.03430852,17400.0,17399.0,4.63948069]
[1673406709407,0.03430852,17400.0,17399.0,3.95624921]
[1673406710349,0.03430852,17400.0,17399.0,4.53982859]
[1673406711146,0.03430852,17400.0,17399.0,4.55019688]
[1673406711406,0.03430852,17400.0,17399.0,4.43198565]
[1673406711660,0.03430852,17400.0,17399.0,3.78846875]
[1673406712415,0.03430852,17400.0,17399.0,4.43198565]
[1673406712666,0.03430852,17400.0,17399.0,3.78846875]
[1673406712910,0.02730852,17400.0,17399.0,3.83757285]
[1673406713962,0.02730852,17400.0,17399.0,4.60050356]
[1673406714213,0.02730852,17400.0,17399.0,4.76560356]
[1673406719315,0.02730852,17400.0,17399.0,4.60038732]
[1673406721831,0.02730852,17400.0,17399.0,4.76548732]
[1673406724215,0.02730852,17400.0,17399.0,4.60038732]
[1673406724471,0.02730852,17400.0,17399.0,5.26321694]
[1673406724719,0.02730852,17400.0,17399.0,4.60038732]
[1673406729429,0.02730852,17400.0,17399.0,4.76438732]
[1673406730202,0.02730852,17400.0,17399.0,4.76435732]
[1673406731598,0.02730852,17400.0,17399.0,4.60035732]
[1673406732875,0.02730852,17400.0,17399.0,5.27547823]
[1673406733181,0.02730852,17400.0,17399.0,4.60035732]
[1673406733441,0.02730852,17400.0,17399.0,5.21900219]
[1673406733684,0.02730852,17400.0,17399.0,4.60035732]
[1673406734245,0.02730852,17400.0,17399.0,4.76545732]
[1673406734486,0.02730852,17400.0,17399.0,5.29406165]
[1673406735472,0.02730852,17400.0,17399.0,4.76545732]
[1673406736239,0.02730852,17400.0,17399.0,5.42404857]
[1673406738053,0.02730852,17400.0,17399.0,5.25894857]
[1673406739336,0.02730852,17400.0,17399.0,5.42334857]
[1673406739588,0.02730852,17400.0,17399.0,4.76475732]
[1673406740102,0.02730852,17400.0,17399.0,4.60035732]
[1673406740657,0.02730852,17400.0,17399.0,5.15566343]
[1673406741147,0.02730852,17400.0,17399.0,4.60035732]
[1673406741656,0.02730852,17400.0,17399.0,5.12180775]
[1673406743192,0.02719752,17400.0,17399.0,5.12180775]
[1673406746542,0.02719752,17400.0,17399.0,4.60035732]
[1673406746792,0.02719752,17400.0,17399.0,5.26200569]
[1673406747306,0.02719752,17400.0,17399.0,4.60035732]
[1673406747554,0.02719752,17400.0,17399.0,4.3677711]
[1673406748402,0.02719752,17400.0,17399.0,5.13104094]
[1673406748816,0.02719752,17400.0,17399.0,4.3677711]
[1673406749317,0.02719752,17400.0,17399.0,3.83742661]
[1673406749571,0.02719752,17400.0,17399.0,4.48718295]
[1673406750084,0.02719752,17400.0,17399.0,3.83742661]
[1673406750561,0.02719752,17400.0,17399.0,4.55376931]
[1673406750815,0.02719752,17400.0,17399.0,4.53649129]
[1673406752339,0.02713752,17400.0,17399.0,4.53649129]
[1673406753598,0.02707752,17400.0,17399.0,3.83742661]
[1673406754350,0.02701752,17400.0,17399.0,3.84342661]
[1673406754672,0.02701752,17400.0,17399.0,4.4768142]
[1673406754864,0.02695752,17400.0,17399.0,4.4768142]
[1673406755368,0.02695752,17400.0,17399.0,3.84342661]
[1673406756632,0.02695752,17400.0,17399.0,4.56007816]
[1673406756920,0.02695752,17400.0,17399.0,3.84342661]
[1673406757161,0.02695752,17400.0,17399.0,4.3768892]
[1673406763255,0.02695752,17400.0,17399.0,3.84342661]
[1673406763514,0.02695752,17400.0,17399.0,4.39365643]
[1673406764252,0.02695752,17400.0,17399.0,4.38311597]
[1673406767625,0.02695752,17400.0,17399.0,4.37311597]
[1673406769187,0.02695752,17400.0,17399.0,4.08582597]
[1673406769430,0.02695752,17400.0,17399.0,4.37311597]
[1673406769702,0.02695752,17400.0,17399.0,4.37310597]
[1673406770247,0.02695752,17400.0,17399.0,5.13654739]
[1673406771861,0.02695752,17400.0,17399.0,5.13656739]
[1673406772895,0.02695752,17400.0,17399.0,5.1365498]
[1673406773416,0.02695752,17400.0,17399.0,5.13654205]
[1673406773693,0.02695752,17400.0,17399.0,5.13654472]
[1673406774748,0.12388808,17400.0,17399.0,5.13654472]
[1673406775993,0.12388808,17400.0,17399.0,4.37312597]
[1673406776517,0.12382808,17400.0,17399.0,4.37312597]
[1673406777303,0.12382808,17400.0,17399.0,4.37300888]
[1673406777853,0.12376808,17400.0,17399.0,4.37300888]
[1673406778509,0.12370808,17400.0,17399.0,4.37300888]
[1673406779025,0.12364808,17400.0,17399.0,4.37300888]
[1673406779356,0.12358808,17400.0,17399.0,4.37300888]
[1673406780004,0.12358808,17400.0,17399.0,3.54601952]
[1673406780251,0.12358808,17400.0,17399.0,3.83329952]
[1673406780526,0.06633153,17400.0,17399.0,3.83329952]
[1673406782527,0.06633153,17400.0,17399.0,4.38524951]
[1673406782777,0.06633153,17400.0,17399.0,3.83329952]
[1673406785872,0.06633153,17400.0,17399.0,3.54601952]
[1673406786140,0.06633153,17400.0,17399.0,3.83329952]
[1673406788855,0.06633153,17400.0,17399.0,4.52619757]
[1673406789117,0.06633153,17400.0,17399.0,3.83329952]
[1673406790893,0.06633153,17400.0,17399.0,4.5140605]
[1673406791675,0.06633153,17400.0,17399.0,3.83329952]
[1673406792662,0.06633153,17400.0,17399.0,4.48237624]
[1673406793393,0.06633153,17400.0,17399.0,5.24569031]
[1673406794405,0.06633153,17400.0,17399.0,4.94569031]
[1673406795629,0.06633153,17400.0,17399.0,5.24569031]
[1673406796904,0.06633153,17400.0,17399.0,5.24570031]
[1673406799922,0.06633153,17400.0,17399.0,4.95841031]
[1673406800418,0.06633153,17400.0,17399.0,5.24570031]
[1673406801895,0.06633153,17400.0,17399.0,4.59662359]
[1673406802399,0.06633153,17400.0,17399.0,5.31878294]
[1673406802899,0.06633153,17400.0,17399.0,4.59662359]
[1673406803875,0.06633153,17400.0,17399.0,5.29383565]
[1673406804147,0.06625268,17400.0,17399.0,5.29383565]
[1673406804397,0.06625268,17400.0,17399.0,4.59662359]
[1673406805405,0.06625268,17400.0,17399.0,5.17113501]
[1673406805702,0.06619268,17400.0,17399.0,5.17113501]
[1673406806203,0.06619268,17400.0,17399.0,5.26099404]
[1673406806934,0.06619268,17400.0,17399.0,4.97370404]
[1673406807401,0.06619268,17400.0,17399.0,5.26099404]
[1673406807938,0.06619268,17400.0,17399.0,4.59662359]
[1673406808184,0.06619268,17400.0,17399.0,5.32017286]
[1673406808429,0.06619268,17400.0,17399.0,4.59662359]
[1673406808677,0.06619268,17400.0,17399.0,5.1304273]
[1673406809543,0.06619268,17400.0,17399.0,4.8431373]
[1673406809793,0.06619268,17400.0,17399.0,5.1304273]
[1673406814804,0.30387057,17400.0,17399.0,3.77982323]
[1673406815059,0.78921831,17400.0,17399.0,2.88587556]
[1673406815333,0.78921831,17400.0,17399.0,3.34333699]
[1673406815868,0.78921831,17400.0,17399.0,2.82656038]
[1673406816902,0.78921831,17400.0,17399.0,1.29275667]
[1673406817172,1.85545139,17400.0,17399.0,1.71493184]
[1673406817425,1.85545139,17400.0,17399.0,2.05947303]
[1673406817697,1.85545139,17400.0,17399.0,1.71459376]
[1673406817965,1.85545139,17400.0,17399.0,2.05913495]
[1673406818673,1.29702576,17400.0,17399.0,2.0591346]
[1673406818924,1.29702576,17400.0,17399.0,1.88699959]
[1673406819173,1.85512814,17400.0,17399.0,1.71458982]
[1673406819433,1.85512814,17400.0,17399.0,1.46488809]
[1673406820185,1.29702576,17400.0,17399.0,1.46488809]
[1673406820705,1.29702576,17400.0,17399.0,1.32588809]
[1673406820932,0.93772776,17400.0,17399.0,1.32588809]
[1673406821180,1.29702576,17400.0,17399.0,1.61325809]
[1673406822178,1.29902576,17400.0,17399.0,1.75225809]
[1673406822444,1.29902576,17400.0,17399.0,1.61325809]
[1673406822445,1.29702576,17400.0,17399.0,1.61325809]
[1673406822705,1.29702576,17400.0,17399.0,1.63225809]
[1673406822952,0.75519068,17400.0,17399.0,2.19045982]
[1673406823172,0.39589268,17400.0,17399.0,2.19045982]
[1673406823673,0.95376358,17400.0,17399.0,2.19045982]
[1673406824169,1.31306158,17400.0,17399.0,2.19045982]
[1673406824415,1.31306158,17400.0,17399.0,1.93225809]
[1673406824668,1.31306158,17400.0,17399.0,1.63217809]
[1673406824911,1.31306158,17400.0,17399.0,1.89037982]
[1673406825167,1.31306158,17400.0,17399.0,2.40194833]
[1673406825421,1.31306158,17400.0,17399.0,2.70194833]
[1673406825422,0.39589268,17400.0,17399.0,2.70194833]
[1673406825670,0.23129268,17400.0,17399.0,2.8743581]
[1673406825914,0.23129268,17400.0,17399.0,3.8743581]
[1673406826166,0.23129268,17400.0,17399.0,4.04683154]
[1673406827652,0.23129268,17400.0,17399.0,4.02783154]
[1673406829412,0.23129268,17400.0,17399.0,4.10683154]
[1673406831426,0.23129268,17400.0,17399.0,4.10546378]
[1673406832920,0.23129268,17400.0,17399.0,3.76092259]
[1673406833168,0.23129268,17400.0,17399.0,3.76089259]
[1673406834659,0.06619268,17400.0,17399.0,3.39339391]
[1673406834916,0.06619268,17400.0,17399.0,4.5469328]
[1673406835180,0.06619268,17400.0,17399.0,3.98605352]
[1673406835440,0.06619268,17400.0,17399.0,3.91017052]
[1673406836205,0.06619268,17400.0,17399.0,4.58000119]
[1673406836939,0.06619268,17400.0,17399.0,5.25964943]
[1673406841779,0.06434768,17400.0,17399.0,5.25964943]
[1673406847758,0.06434768,17400.0,17399.0,5.25962943]
[1673406856788,0.06434768,17400.0,17399.0,4.97230943]
[1673406857313,0.06434768,17400.0,17399.0,5.25962943]
[1673406864846,0.06434768,17400.0,17399.0,4.74126869]
[1673406866349,0.06434768,17400.0,17399.0,5.25786161]
[1673406867140,0.06434768,17400.0,17399.0,4.97054161]
[1673406867400,0.06434768,17400.0,17399.0,5.25786161]
[1673406867874,0.06434768,17400.0,17399.0,4.74126869]
[1673406873700,0.06434768,17400.0,17399.0,5.50458276]
[1673406873991,0.06434768,17400.0,17399.0,4.74126869]
[1673406875459,0.05834768,17400.0,17399.0,4.73526869]
[1673406878625,0.05834768,17400.0,17399.0,5.25223224]
[1673406880134,0.05834768,17400.0,17399.0,5.25225224]
[1673406887539,0.05834768,17400.0,17399.0,4.73528869]
[1673406888107,0.05834768,17400.0,17399.0,5.25225224]
[1673406888608,0.05834768,17400.0,17399.0,4.73528869]
[1673406888862,0.05834768,17400.0,17399.0,5.25225224]
[1673406891228,0.05834768,17400.0,17399.0,5.25224224]
[1673406895977,0.05834768,17400.0,17399.0,5.25225224]
[1673406899059,0.0582513,17400.0,17399.0,5.25224224]
[1673406905283,0.0582513,17400.0,17399.0,4.65939569]
[1673406907074,0.0582513,17400.0,17399.0,5.25460723]
[1673406908912,0.0582513,17400.0,17399.0,4.96727723]
[1673406909164,0.0582513,17400.0,17399.0,5.25459723]
[1673406909680,0.0582513,17400.0,17399.0,4.73763368]
[1673406910645,0.0582513,17400.0,17399.0,4.05798544]
[1673406910907,0.0582513,17400.0,17399.0,4.09582249]
[1673406911167,0.0582513,17400.0,17399.0,5.45735438]
[1673406911413,0.0582513,17400.0,17399.0,5.53560237]
[1673406911926,0.0582513,17400.0,17399.0,5.45660237]
[1673406912166,0.0582513,17400.0,17399.0,5.5433199]
[1673406912505,0.0582513,17400.0,17399.0,4.88202954]
[1673406912925,0.0582513,17400.0,17399.0,4.88702954]
[1673406913202,0.0582513,17400.0,17399.0,5.50877012]
[1673406913745,0.0582513,17400.0,17399.0,4.88702954]
[1673406917743,0.6768877,17403.0,17399.0,4.88702954]
[1673406917988,0.11641377,17403.0,17402.0,1.0]
[1673406918247,0.11641377,17403.0,17402.0,3.023938]
[1673406918502,0.11641377,17403.0,17402.0,3.032438]
[1673406918755,0.11641377,17403.0,17402.0,3.46269984]
[1673406919549,0.11641377,17403.0,17402.0,3.74998984]
[1673406920142,0.67760177,17403.0,17402.0,4.09419264]
[1673406920814,1.30091042,17403.0,17402.0,2.80119264]
[1673406921066,1.63061042,17403.0,17402.0,1.18399924]
[1673406921318,1.63061042,17403.0,17402.0,0.007]
[1673406921319,1.98983797,17403.0,17402.0,0.007]
[1673406922648,1.98983797,17403.0,17401.0,1.57958684]
[1673406922881,1.24908884,17402.0,17401.0,1.00492984]
[1673406923135,1.24908884,17402.0,17401.0,1.58808384]
[1673406924444,1.24908884,17402.0,17401.0,1.3369334]
[1673406924713,1.24908884,17402.0,17401.0,1.59508384]
[1673406925229,1.24908884,17402.0,17401.0,1.89508384]
[1673406926724,1.86379286,17402.0,17401.0,0.581678]
[1673406926969,2.02889286,17402.0,17401.0,0.581678]
[1673406927228,2.02889286,17402.0,17401.0,0.007]
[1673406927987,2.02889286,17402.0,17400.0,0.7467834]
[1673406928241,1.2480428,17401.0,17400.0,0.7467834]
[1673406929242,1.2480428,17401.0,17400.0,0.574682]
[1673406929752,1.2480428,17401.0,17400.0,0.7467834]
[1673406930249,1.88068727,17401.0,17400.0,0.7477834]
[1673406933119,1.88068727,17401.0,17400.0,0.575682]
[1673406938358,1.88068727,17401.0,17400.0,1.150394]
[1673406938642,1.52138927,17401.0,17400.0,1.150394]
[1673406938897,1.52138927,17401.0,17400.0,1.450394]
[1673406939218,1.52138927,17401.0,17400.0,1.150394]
[1673406939682,1.88068727,17401.0,17400.0,1.150394]
[1673406942009,1.52138927,17401.0,17400.0,1.150394]
[1673406942277,1.88068727,17401.0,17400.0,1.150394]
[1673406945354,1.52138927,17401.0,17400.0,1.150394]
[1673406945640,1.88068727,17401.0,17400.0,1.150394]
[1673406945857,1.52138927,17401.0,17400.0,1.150394]
[1673406946130,1.88068727,17401.0,17400.0,1.150394]
[1673406946379,1.52138927,17401.0,17400.0,1.150394]
[1673406946916,1.88068727,17401.0,17400.0,1.150394]
[1673406948259,1.88068727,17401.0,17400.0,0.575712]
[1673406950647,1.71588727,17401.0,17400.0,0.575712]
[1673406952013,1.35658927,17401.0,17400.0,0.575712]
[1673406952304,1.35658927,17401.0,17400.0,0.875712]
[1673406953069,1.35658927,17401.0,17400.0,1.450424]
[1673406953880,1.35658927,17401.0,17400.0,1.150424]
[1673406954389,1.71588727,17401.0,17400.0,0.575712]
[1673406954643,1.35658927,17401.0,17400.0,0.575712]
[1673406957001,1.50664402,17401.0,17400.0,0.575712]
[1673406957562,1.35658927,17401.0,17400.0,0.575712]
[1673406958327,1.71588727,17401.0,17400.0,0.575712]
[1673406958597,1.35658927,17401.0,17400.0,0.575712]
[1673406958954,1.71588727,17401.0,17400.0,0.575712]
[1673406960651,1.71588727,17401.0,17400.0,0.7478134]
[1673406961176,1.71588727,17401.0,17400.0,0.74686463]
[1673406961679,1.35658927,17401.0,17400.0,0.74686463]
[1673406961927,1.71588727,17401.0,17400.0,0.74686463]
[1673406962188,1.35658927,17401.0,17400.0,0.74686463]
[1673406962408,1.71588727,17401.0,17400.0,0.74686463]
[1673406962663,1.71588727,17401.0,17400.0,1.00501507]
[1673406962914,1.35658927,17401.0,17400.0,1.00501507]
[1673406963414,1.71588727,17401.0,17400.0,1.00501507]
[1673406964126,1.35658927,17401.0,17400.0,0.74686463]
[1673406964351,1.35658927,17401.0,17400.0,1.00501507]
[1673406964352,1.71588727,17401.0,17400.0,1.00501507]
[1673406965090,1.15564247,17401.0,17400.0,1.00432779]
[1673406965362,1.79454525,17401.0,17400.0,1.00432779]
[1673406965612,1.43524725,17401.0,17400.0,0.74617735]
[1673406965870,1.43524725,17401.0,17400.0,1.00432779]
[1673406966642,1.43524725,17401.0,17400.0,1.34853059]
[1673406966892,1.43524725,17401.0,17400.0,1.17642919]
[1673406968655,1.43524725,17401.0,17400.0,1.00457168]
[1673406968958,1.43524725,17401.0,17400.0,1.00415931]
[1673406969974,1.43524725,17401.0,17400.0,1.34836211]
[1673406970238,1.43524725,17401.0,17400.0,1.00415931]
[1673406970735,1.43524725,17401.0,17400.0,1.34836211]
[1673406970987,1.79454525,17401.0,17400.0,1.34836211]
[1673406971246,1.43524725,17401.0,17400.0,1.34836211]
[1673406971524,1.79454525,17401.0,17400.0,1.00415931]
[1673406971734,1.79454525,17401.0,17400.0,1.34836211]
[1673406971991,1.43524725,17401.0,17400.0,1.34836211]
[1673406972208,1.79454525,17401.0,17400.0,1.34836211]
[1673406972707,1.79454525,17401.0,17400.0,1.00415931]
[1673406972708,1.43524725,17401.0,17400.0,1.00415931]
[1673406972968,1.79454525,17401.0,17400.0,1.00415931]
[1673406973227,1.43524725,17401.0,17400.0,1.00415931]
[1673406973484,1.79454525,17401.0,17400.0,1.00415931]
[1673406973750,1.79454525,17401.0,17400.0,1.00391986]
[1673406974534,1.43524725,17401.0,17400.0,1.34812474]
[1673406974776,1.79454525,17401.0,17400.0,1.17577737]
[1673406975022,1.43524725,17401.0,17400.0,1.17577737]
[1673406975302,1.79454525,17401.0,17400.0,1.17577737]
[1673406975553,1.43524725,17401.0,17400.0,1.34812447]
[1673406975798,1.79454525,17401.0,17400.0,1.34812447]
[1673406976069,1.79454525,17401.0,17400.0,1.00392167]
[1673406976341,1.43524725,17401.0,17400.0,1.00392167]
[1673406976582,1.79454525,17401.0,17400.0,1.00392167]
[1673406977095,1.43524725,17401.0,17400.0,1.00392167]
[1673406977351,1.79454525,17401.0,17400.0,1.00392167]
[1673406978107,1.79454525,17401.0,17400.0,1.00392089]
[1673406978351,1.43524725,17401.0,17400.0,1.00392089]
[1673406978853,1.79454525,17401.0,17400.0,1.00392089]
[1673406980844,1.63084525,17401.0,17400.0,1.00392089]
[1673406981093,1.27154725,17401.0,17400.0,1.00392089]
[1673406981356,1.63084525,17401.0,17400.0,1.00392089]
[1673406985533,1.63084525,17401.0,17400.0,0.17234632]
[1673406985534,1.80256053,17401.0,17400.0,0.17234632]
[1673406986029,1.96736053,17401.0,17399.0,1.34942156]
[1673406986290,1.96736053,17401.0,17399.0,1.00521876]
[1673406986291,1.16330078,17400.0,17399.0,1.00521876]
[1673406986834,0.80400278,17400.0,17399.0,1.00521876]
[1673406987103,1.16330078,17400.0,17399.0,1.01221876]
[1673406987351,1.16330078,17400.0,17399.0,1.00521876]
[1673406987352,0.80400278,17400.0,17399.0,1.00521876]
[1673406987600,1.16330078,17400.0,17399.0,1.01221876]
[1673406989924,0.80400278,17400.0,17399.0,1.01221876]
[1673406990181,1.16330078,17400.0,17399.0,1.01221876]
[1673406990443,0.80400278,17400.0,17399.0,1.01221876]
[1673406990683,1.16330078,17400.0,17399.0,1.58696376]
[1673406990949,1.16330078,17400.0,17399.0,1.75882024]
[1673406991206,0.80400278,17400.0,17399.0,1.75882024]
[1673406991459,1.16330078,17400.0,17399.0,1.75882024]
[1673406992237,0.80400278,17400.0,17399.0,1.75882024]
[1673406992484,1.16330078,17400.0,17399.0,1.75882024]
[1673406992743,0.80400278,17400.0,17399.0,1.75882024]
[1673406993026,1.16330078,17400.0,17399.0,1.75882024]
[1673406993307,0.80400278,17400.0,17399.0,1.93113541]
[1673406993547,1.16330078,17400.0,17399.0,1.93113541]
[1673406993796,1.16330078,17400.0,17399.0,1.75882024]
[1673406994520,0.80400278,17400.0,17399.0,1.75882024]
[1673406994776,1.16330078,17400.0,17399.0,1.75882024]
[1673406995043,0.80400278,17400.0,17399.0,1.75882024]
[1673406995298,1.16330078,17400.0,17399.0,1.75882024]
[1673406996323,0.80400278,17400.0,17399.0,1.75882024]
[1673406996580,1.16330078,17400.0,17399.0,1.75882024]
[1673406997344,1.16320375,17400.0,17399.0,2.05882024]
[1673406997600,0.80390575,17400.0,17399.0,1.75882024]
[1673406997827,0.52430097,17400.0,17399.0,1.75882024]
[1673406998077,1.16320375,17400.0,17399.0,1.75882024]
[1673406999117,0.52430097,17400.0,17399.0,1.75882024]
[1673406999672,1.16320375,17400.0,17399.0,2.05882024]
[1673407000146,0.16500297,17400.0,17399.0,2.05882024]
[1673407000400,0.52430097,17400.0,17399.0,2.05882024]
[1673407000651,1.16320375,17400.0,17399.0,1.75882024]
[1673407001179,1.16320375,17400.0,17399.0,1.18409824]
[1673407001408,1.16320375,17400.0,17399.0,1.18399022]
[1673407001709,0.99820078,17400.0,17399.0,1.18399022]
[1673407002727,0.99820078,17400.0,17399.0,1.0121057]
[1673407002980,0.99820078,17400.0,17399.0,1.3563085]
[1673407003228,0.99820078,17400.0,17399.0,1.18399022]
[1673407003980,0.99820078,17400.0,17399.0,1.35630643]
[1673407004489,0.99820078,17400.0,17399.0,1.35630654]
[1673407004969,0.99820078,17400.0,17399.0,1.01210374]
[1673407005221,0.99820078,17400.0,17399.0,1.35630654]
[1673407005471,0.99820078,17400.0,17399.0,1.01210374]
[1673407005721,0.99820078,17400.0,17399.0,1.35630654]
[1673407005975,0.99820078,17400.0,17399.0,1.18399022]
[1673407006217,0.359298,17400.0,17399.0,2.23095464]
[1673407006466,1.43614725,17401.0,17399.0,2.23095464]
[1673407006718,1.43614725,17401.0,17400.0,0.17230816]
[1673407006983,1.79544525,17401.0,17400.0,0.17230816]
[1673407007981,1.79644525,17401.0,17400.0,0.17330816]
[1673407010240,1.79644525,17401.0,17400.0,0.43178733]
[1673407010769,1.79644525,17401.0,17400.0,0.17330816]
[1673407011010,1.79644525,17401.0,17400.0,0.43178733]
[1673407011743,0.001,17401.0,17400.0,2.59788566]
[1673407011774,0.001,17401.0,17400.0,2.93499977]
[1673407012026,0.001,17401.0,17400.0,3.10678244]
[1673407012351,0.001,17401.0,17400.0,3.00017753]
[1673407012552,1.30975329,17403.0,17400.0,2.3313178]
[1673407012794,0.11634332,17403.0,17402.0,0.43076163]
[1673407013044,0.11634332,17403.0,17402.0,1.20306629]
[1673407013300,0.11634332,17403.0,17402.0,2.17973907]
[1673407013554,0.11634332,17403.0,17402.0,2.35215873]
[1673407013834,0.11634332,17403.0,17402.0,2.35815873]
[1673407014105,0.11634332,17403.0,17402.0,2.18573602]
[1673407014332,0.11634332,17403.0,17402.0,1.88573602]
[1673407014844,0.11634332,17403.0,17402.0,1.87973602]
[1673407015105,0.11634332,17403.0,17402.0,1.6274786]
[1673407016349,0.11634332,17403.0,17402.0,1.6214786]
[1673407016599,0.11634332,17403.0,17402.0,1.9274786]
[1673407016858,0.11634332,17403.0,17402.0,1.6274786]
[1673407017106,0.7552461,17403.0,17402.0,1.155292]
[1673407017356,1.1145441,17403.0,17402.0,1.155292]
[1673407017839,0.7552461,17403.0,17402.0,1.155292]
[1673407018092,1.1145441,17403.0,17402.0,1.155292]
[1673407018595,0.7552461,17403.0,17402.0,1.155292]
[1673407018851,0.11634332,17403.0,17402.0,1.155292]
[1673407019094,0.11634332,17403.0,17402.0,1.455292]
[1673407020391,0.11634332,17403.0,17402.0,1.155292]
[1673407021618,0.11634332,17403.0,17402.0,1.455292]
[1673407022103,0.7552461,17403.0,17402.0,1.455292]
[1673407022358,0.11634332,17403.0,17402.0,1.155292]
[1673407023112,0.7552461,17403.0,17402.0,1.155292]
[1673407023367,0.11634332,17403.0,17402.0,1.155292]
[1673407023870,0.7552461,17403.0,17402.0,1.155292]
[1673407024645,1.1145441,17403.0,17402.0,1.155292]
[1673407024914,0.7552461,17403.0,17402.0,1.155292]
[1673407025140,1.64780024,17403.0,17402.0,1.155292]
[1673407025397,0.64959946,17403.0,17402.0,1.155292]
[1673407025658,1.00889746,17403.0,17402.0,1.155292]
[1673407026668,0.81419946,17403.0,17402.0,1.155292]
[1673407026921,1.81240024,17403.0,17402.0,1.155292]
[1673407027934,1.81240024,17403.0,17402.0,1.149292]
[1673407028193,1.81240024,17403.0,17402.0,1.157292]
[1673407034581,1.81230482,17403.0,17402.0,1.157292]
[1673407035929,1.45300682,17403.0,17402.0,1.157292]
[1673407036182,1.81230482,17403.0,17402.0,1.157292]
[1673407036663,1.45300682,17403.0,17402.0,1.157292]
[1673407036912,1.81230482,17403.0,17402.0,1.157292]
[1673407038422,1.45300682,17403.0,17402.0,1.157292]
[1673407038676,1.81230482,17403.0,17402.0,1.157292]
[1673407038961,1.45300682,17403.0,17402.0,1.157292]
[1673407039199,1.81230482,17403.0,17402.0,1.157292]
[1673407039478,1.45300682,17403.0,17402.0,1.157292]
[1673407039976,1.80230482,17403.0,17402.0,1.157292]
[1673407041180,1.80230482,17403.0,17402.0,0.582646]
[1673407042465,1.80230482,17403.0,17402.0,0.008]
[1673407042769,1.96740482,17403.0,17402.0,0.008]
[1673407042971,1.90586396,17403.0,17402.0,0.008]
[1673407043248,2.52186543,17403.0,17402.0,0.008]
[1673407043499,0.3,17402.0,17399.0,1.86024655]
[1673407043761,0.3,17402.0,17399.0,2.03243315]
[1673407043762,0.1651,17400.0,17399.0,2.03243315]
[1673407044002,1.16330078,17400.0,17399.0,0.71080855]
[1673407044242,0.524398,17400.0,17399.0,0.71080855]
[1673407045010,0.524398,17400.0,17399.0,0.78180855]
[1673407045284,0.1651,17400.0,17399.0,0.95399515]
[1673407046029,0.1651,17400.0,17399.0,1.52874015]
[1673407047536,0.1651,17400.0,17399.0,2.10348515]
[1673407047815,0.359298,17400.0,17399.0,2.10348515]
[1673407048067,1.29280437,17401.0,17399.0,2.40348515]
[1673407048546,0.359298,17400.0,17399.0,2.40348515]
[1673407049057,1.29280437,17401.0,17399.0,2.40348515]
[1673407049307,1.29280437,17401.0,17399.0,2.66155955]
[1673407049809,1.29280437,17401.0,17399.0,2.59055955]
[1673407050080,1.29280437,17401.0,17399.0,2.66155955]
[1673407050571,0.65390159,17401.0,17399.0,2.66155955]
[1673407051070,1.29280437,17401.0,17399.0,2.66155955]
[1673407051587,1.29280437,17401.0,17400.0,0.1721866]
[1673407051852,1.01319959,17401.0,17400.0,0.3]
[1673407052115,1.65210237,17401.0,17399.0,2.66152755]
[1673407052372,0.359298,17400.0,17399.0,2.66152755]
[1673407052642,1.29280437,17401.0,17399.0,2.66152755]
[1673407052921,1.29280437,17401.0,17399.0,2.59052755]
[1673407053138,1.29280437,17401.0,17400.0,0.002]
[1673407053391,1.65210237,17401.0,17400.0,0.002]
[1673407053646,1.65210237,17401.0,17400.0,0.574712]
[1673407054408,1.65210237,17401.0,17400.0,0.576712]
[1673407054661,1.65210237,17401.0,17400.0,0.574712]
[1673407054911,1.66010237,17401.0,17400.0,0.576712]
[1673407059846,1.30080437,17401.0,17400.0,0.576712]
[1673407060863,1.66010237,17401.0,17400.0,0.576712]
[1673407062354,1.66010237,17401.0,17400.0,0.7488986]
[1673407063133,1.66010237,17401.0,17400.0,0.576712]
[1673407064890,1.66010237,17401.0,17400.0,0.7488986]
[1673407066659,1.66010237,17401.0,17400.0,0.576712]
[1673407066905,1.66010237,17401.0,17400.0,0.7488986]
[1673407076528,1.66010237,17401.0,17400.0,1.006973]
[1673407076778,1.66010237,17401.0,17400.0,0.7488986]
[1673407077019,1.66010237,17401.0,17400.0,0.74614016]